{"text_format":"1","workbook":"xlsx","n_sheets":3,"sheets":["REPOSICIÓN","A","AP"],"not_rendered":{"charts":0,"images":0,"macros":1,"external_links":0,"defined_names":1,"comments":0,"pivot_tables":0},"unopened":[],"bounds":{"document_bytes":16777216,"sheet_cells":100000,"rows_first":2000,"rows_last":500,"rows_between":2000,"halvings":0,"cell_chars":16384,"cell_head_chars":4096},"cells_cut":0,"cells_raw":0,"read":"whole","date_system":"1900"}

{"sheet":"REPOSICIÓN","index":0,"n_rows":17,"n_cols":19,"rows_kept":17,"cut":false,"hidden":false,"merged":[[2,4,3,4],[2,9,2,12],[2,13,2,18],[1,0,1,18],[2,0,3,0],[2,5,3,5],[2,6,3,6],[2,7,3,8],[2,1,3,3]]}
[]
["ESTRUCTURA PRELIMINAR DE COSTOS - REPOSICIÓN"]
["N°","UNIDAD PRODUCTORA",null,null,"SECTOR RESPONSABLE","CATEGORÍA/CLASE DE UP","ÁREA PRODUCTIVA","NOMBRE DEL AMBIENTE",null,"DATOS DEL ACTIVO EN SERVICIO",null,null,null,"DATOS DEL ACTIVO ESTRATÉGICO NUEVO"]
[null,null,null,null,null,null,null,null,null,"CÓDIGO PATRIMONIAL","DENOMINACIÓN","AÑOS DE USO","COSTO DE MANTENIMIENTO ANUAL","DENOMINACIÓN OFICIAL DEL ACTIVO ESTRATÉGICO","DESCRIPCIÓN DEL ACTIVO ESTRATÉGICO","CANTIDAD","COSTO UNITARIO","COSTO TOTAL","COSTO DE MANTENIMIENTO DEL AE NUEVO"]
[{"$f":"IFERROR(IF(COUNTA(C5),1,\" \"),\" \")","v":" "},{"$f":"IF(C5=\"MERCADO DE ABASTOS\",\"MERCADO\",IF(C5=\"CITE/UT\",\"CITE\",IF(C5=\"CENTRO ACUÍCOLA\",\"CA\",IF(C5=\"DESEMBARCADERO PESQUERO ARTESANAL\",\"DPA\",IF(C5=\"CENTRO DE ENTRENAMIENTO PESQUERO\",\"CEP\",IF(C5=\"LABORATORIO DE METROLOGÍA (INACAL)\",\"INACAL\",IF(C5=\"LABORATORIO DE ANÁLISIS DE SANIDAD E INOCUIDAD\",\"SANIPES\",IF(C5=\"CENTRO DE INVESTIGACIÓN CIENTÍFICA\",\"CIC\",IF(C5=\"SEDES INSTITUCIONALES\",\"SEDES\",IF(C5=\"TIC\",\"TIC\"))))))))))","v":false},null,{"$f":"IF(C5=\"MERCADO DE ABASTOS\",\"MA\",IF(C5=\"CITE/UT\",\"CITEUT\",IF(C5=\"CENTRO ACUÍCOLA\",\"CACUICOLA\",IF(C5=\"DESEMBARCADERO PESQUERO ARTESANAL\",\"DESEMBARCADERO\",IF(C5=\"CENTRO DE ENTRENAMIENTO PESQUERO\",\"CEPESQUERO\",IF(C5=\"LABORATORIO DE METROLOGÍA (INACAL)\",\"LM\",IF(C5=\"LABORATORIO DE ANÁLISIS DE SANIDAD E INOCUIDAD\",\"LASI\",IF(C5=\"CENTRO DE INVESTIGACIÓN CIENTÍFICA\",\"CDI\",IF(C5=\"SEDES INSTITUCIONALES\",\"SEINS\",IF(C5=\"TIC\",\"TEC\"))))))))))","v":false},{"$f":"IF(OR(C5=\"SEDES INSTITUCIONALES\",C5=\"TIC\"),\"PRESIDENCIA DEL CONSEJO DE MINISTROS\",\"PRODUCCIÓN\")","v":"PRODUCCIÓN"},null,null,{"$f":"IF(C5=\"MERCADO DE ABASTOS\",\"MDA\",IF(C5=\"CITE/UT\",\"CIP\",IF(C5=\"CENTRO ACUÍCOLA\",\"CAC\",IF(C5=\"DESEMBARCADERO PESQUERO ARTESANAL\",\"DESEM\",IF(C5=\"CENTRO DE ENTRENAMIENTO PESQUERO\",\"CDEP\",IF(C5=\"LABORATORIO DE METROLOGÍA (INACAL)\",\"LBM\",IF(C5=\"LABORATORIO DE ANÁLISIS DE SANIDAD E INOCUIDAD\",\"LBS\",IF(C5=\"CENTRO DE INVESTIGACIÓN CIENTÍFICA\",\"CDIC\",IF(C5=\"SEDES INSTITUCIONALES\",\"SINS\",IF(C5=\"TIC\",\"TDI\"))))))))))","v":false},null,null,null,null,null,null,null,null,null,{"$f":"+P5*Q5","v":0}]
[{"$f":"IFERROR(IF(COUNTA(C6),A5+1,\" \"),\" \")","v":" "},false,null,{"$f":"IF(C6=\"MERCADO DE ABASTOS\",\"MA\",IF(C6=\"CITE/UT\",\"CITEUT\",IF(C6=\"CENTRO ACUÍCOLA\",\"CACUICOLA\",IF(C6=\"DESEMBARCADERO PESQUERO ARTESANAL\",\"DESEMBARCADERO\",IF(C6=\"CENTRO DE ENTRENAMIENTO PESQUERO\",\"CEPESQUERO\",IF(C6=\"LABORATORIO DE METROLOGÍA (INACAL)\",\"LM\",IF(C6=\"LABORATORIO DE ANÁLISIS DE SANIDAD E INOCUIDAD\",\"LASI\",IF(C6=\"CENTRO DE INVESTIGACIÓN CIENTÍFICA\",\"CDI\",IF(C6=\"SEDES INSTITUCIONALES\",\"SEINS\",IF(C6=\"TIC\",\"TEC\"))))))))))","v":false},"PRODUCCIÓN",null,null,{"$f":"IF(C6=\"MERCADO DE ABASTOS\",\"MDA\",IF(C6=\"CITE/UT\",\"CIP\",IF(C6=\"CENTRO ACUÍCOLA\",\"CAC\",IF(C6=\"DESEMBARCADERO PESQUERO ARTESANAL\",\"DESEM\",IF(C6=\"CENTRO DE ENTRENAMIENTO PESQUERO\",\"CDEP\",IF(C6=\"LABORATORIO DE METROLOGÍA (INACAL)\",\"LBM\",IF(C6=\"LABORATORIO DE ANÁLISIS DE SANIDAD E INOCUIDAD\",\"LBS\",IF(C6=\"CENTRO DE INVESTIGACIÓN CIENTÍFICA\",\"CDIC\",IF(C6=\"SEDES INSTITUCIONALES\",\"SINS\",IF(C6=\"TIC\",\"TDI\"))))))))))","v":false},null,null,null,null,null,null,null,null,null,0]
[{"$f":"IFERROR(IF(COUNTA(C7),A6+1,\" \"),\" \")","v":" "},false,null,false,"PRODUCCIÓN",null,null,false,null,null,null,null,null,null,null,null,null,0]
[" ",false,null,false,"PRODUCCIÓN",null,null,false,null,null,null,null,null,null,null,null,null,0]
[" ",false,null,false,"PRODUCCIÓN",null,null,false,null,null,null,null,null,null,null,null,null,0]
[" ",false,null,false,"PRODUCCIÓN",null,null,false,null,null,null,null,null,null,null,null,null,0]
[" ",false,null,false,"PRODUCCIÓN",null,null,false,null,null,null,null,null,null,null,null,null,0]
[" ",false,null,false,"PRODUCCIÓN",null,null,false,null,null,null,null,null,null,null,null,null,0]
[" ",false,null,false,"PRODUCCIÓN",null,null,false,null,null,null,null,null,null,null,null,null,0]
[" ",false,null,false,"PRODUCCIÓN",null,null,false,null,null,null,null,null,null,null,null,null,0]
[" ",false,null,false,{"$f":"IF(OR(C15=\"SEDES INSTITUCIONALES\",C15=\"TIC\"),\"PRESIDENCIA DEL CONSEJO DE MINISTROS\",\"PRODUCCIÓN\")","v":"PRODUCCIÓN"},null,null,false,null,null,null,null,null,null,null,null,null,0]
[" ",false,null,false,"PRODUCCIÓN",null,null,false,null,null,null,null,null,null,null,null,null,0]
["Nota: El costo de cada activo estratégico incluye IGV, gastos generales y utilidad.","Nota: El costo de cada activo estratégico incluye IGV, gastos generales y utilidad."]

{"sheet":"A","index":1,"n_rows":40,"n_cols":11,"rows_kept":40,"cut":false,"hidden":true,"merged":[]}
[]
[]
["N°","MERCADO DE ABASTOS","CITE/UT","CENTRO ACUÍCOLA","CENTRO DE ENTRENAMIENTO PESQUERO","DESEMBARCADERO PESQUERO ARTESANAL","LABORATORIO DE METROLOGÍA (INACAL)","LABORATORIO DE ANÁLISIS DE SANIDAD E INOCUIDAD","CENTRO DE INVESTIGACIÓN CIENTÍFICA","SEDES INSTITUCIONALES","TIC"]
[1,"CÁMARA FRIGORÍFICA","POR DEFNIR","POR DEFNIR","EQUIPO DE CAPACITACION","EQUIPO DE SISTEMA DE FRIO","HARDWARE GENERAL","AGITADOR DE LABORATORIO","POR DEFNIR","Organización","Access point"]
[2,"CONTENEDOR DE RESIDUOS SÓLIDOS PARA MERCADOS","POR DEFNIR","POR DEFNIR","EQUIPO DE INSTRUCCIÓN","EQUIPO PARA AREA DE DESCARGA","INSTRUMENTOS DE MEDICION PARA CONTROL METROLOGICO","AUTOCLAVE","POR DEFNIR","Información","Equipo de telecomunicaciones"]
[3,"GRUPO ELECTRÓGENO","POR DEFNIR","POR DEFNIR","EQUIPO DE SALA DE COMPUTO","EQUIPO PARA AREA DE TRATAMIENTO PREVIO Y DESINFECCION","LABORATORIO","BALANZA DE LABORATORIO","POR DEFNIR","Sistema de Información","Equipo de videoconferencia"]
[4,"MONTACARGA",null,null,null,"EQUIPO PARA PESAJE Y/O TRANSPORTE DE RRHH","SISTEMA DE GENERACION Y DISTRIBUCION DE FLUJOS","BAÑO TERMOSTATICO",null,null,"Hardware general"]
[5,null,null,null,null,null,"SOFTWARE","BAÑO TERMOSTATICO",null,null,"Networking core datacenter / edificio"]
[6,null,null,null,null,null,"VEHICULO PARA TRANSPORTE DE PATRONES Y APLICACION DE MEDICIONES","BLENDER",null,null,"Protección eléctrica para data center / nodo"]
[7,null,null,null,null,null,null,"CABINA DE LABORATORIO",null,null,"Servidor"]
[8,null,null,null,null,null,null,"CAMPANA EXTRACTORA DE LABORATORIO",null,null,"Servidor de Gestión de video"]
[9,null,null,null,null,null,null,"CENTRIFUGA",null,null,"Sistema de potencia"]
[10,null,null,null,null,null,null,"CONTADOR DE COLONIAS",null,null,"Sistemas de aire acondicionado"]
[11,null,null,null,null,null,null,"CRIOSTATO",null,null,"Sistemas de protección contra incendio"]
[12,null,null,null,null,null,null,"CROMATOGRAFO",null,null,"Switch"]
[13,null,null,null,null,null,null,"DESHUMEDECEDOR",null,null,"Información"]
[14,null,null,null,null,null,null,"ESTUFA",null,null,"Servicios en la nube"]
[15,null,null,null,null,null,null,"EXTRACTOR DE ADN/ARN",null,null,"Sistema"]
[16,null,null,null,null,null,null,"FLUOROMETRO",null,null,"Sistema de Información"]
[17,null,null,null,null,null,null,"HOMOGENEIZADOR",null,null,"Software"]
[18,null,null,null,null,null,null,"INCUBADORA",null,null,"Wireless controler"]
[19,null,null,null,null,null,null,"LAMPARAS DE LABORATORIO"]
[20,null,null,null,null,null,null,"LIOFILIZADOR"]
[21,null,null,null,null,null,null,"MICROSCOPIO"]
[22,null,null,null,null,null,null,"MICROTOMO"]
[23,null,null,null,null,null,null,"MUEBLE DE LABORATORIO"]
[24,null,null,null,null,null,null,"MULTIPARAMETRO"]
[25,null,null,null,null,null,null,"PURIFICADOR DE AGUA"]
[26,null,null,null,null,null,null,"SECUENCIADOR"]
[27,null,null,null,null,null,null,"SELLADOR DE LATAS"]
[28,null,null,null,null,null,null,"SISTEMA DE ABLANDAMIENTO DE AGUA"]
[29,null,null,null,null,null,null,"SISTEMA DE AGITACIÓN CON INCUBACIÓN"]
[30,null,null,null,null,null,null,"SISTEMA DE CADENA DE FRÍO"]
[31,null,null,null,null,null,null,"SISTEMA DE ELECTROFORESIS"]
[32,null,null,null,null,null,null,"SISTEMA DE FILTRACIÓN DE MEBRANA"]
[33,null,null,null,null,null,null,"TERMOBLOQUE"]
[34,null,null,null,null,null,null,"TERMOCICLADOR"]
[35,null,null,null,null,null,null,"TERMOCOUPLA"]
[36,null,null,null,null,null,null,"TERMOHIGROMETRO"]
[37,null,null,null,null,null,null,"TRANSILUMINADOR"]

{"sheet":"AP","index":2,"n_rows":22,"n_cols":11,"rows_kept":22,"cut":false,"hidden":true,"merged":[]}
[null,"CATEGORÍA DE UP"]
[null,"MERCADO DE ABASTOS","CITE/UT","CENTRO ACUÍCOLA","CENTRO DE ENTRENAMIENTO PESQUERO","DESEMBARCADERO PESQUERO ARTESANAL","LABORATORIO DE METROLOGÍA (INACAL)","LABORATORIO DE ANÁLISIS DE SANIDAD E INOCUIDAD","CENTRO DE INVESTIGACIÓN CIENTÍFICA","SEDES INSTITUCIONALES","TIC"]
[null,"CATEGORÍA 1","UT","NO APLICA","NO APLICA","NO APLICA","LABORATORIOS FIJOS DE CALIBRACIÓN","NO APLICA","CENTRO DE INVESTIGACIÓN CIENTÍFICA TERRESTRE","SEDE CENTRAL","TIC"]
[null,"CATEGORÍA 2","CITE","NO APLICA","NO APLICA","NO APLICA","LABORATORIOS MÓVILES O ITINERANTES","NO APLICA","CENTRO DE INVESTIGACIÓN CIENTÍFICA FLOTANTE","SEDE PERIFÉRICA","TIC"]
[null,"CATEGORÍA 3",null,"NO APLICA","NO APLICA","NO APLICA",null,"NO APLICA",null,"OFICINA DESCONCENTRADA","TIC"]
[null,"CATEGORÍA 4",null,"NO APLICA","NO APLICA","NO APLICA",null,"NO APLICA",null,null,"TIC"]
[null,"CATEGORÍA 5",null,"NO APLICA","NO APLICA","NO APLICA",null,"NO APLICA",null,null,"TIC"]
[null,"MERCADO MAYORISTA"]
[null,"MERCADO MIXTO"]
[null,"MERCADO DE ABASTOS HIDROBIOLÓGICO"]
[null,"MERCADO DE ABASTOS RURAL"]
[]
[null,"ÁREA PRODUCTIVA"]
[null,"MA","CITEUT","CACUICOLA","CEPESQUERO","DESEMBARCADERO","LM","LASI","CDI","SEINS","TEC"]
[null,"ÁREA COMERCIAL","PLANTA PILOTO","INFRAESTRUCTURA HIDRÁULICA","ÁREA DE CAPACITACIÓN","ÁREA DE EMBARQUE/DESEMBARQUE","NO APLICA","NO APLICA","NO APLICA","ALTA DIRECCIÓN","GESTIÓN DE LA INFORMACIÓN"]
[null,"ÁREA DE ABASTECIMIENTO, CONTROL Y DESPACHO","LABORATORIO","ÁREA DE SEMILLAS","ÁREA DE ENTRENAMIENTO","ÁREA DE TRATAMIENTO PREVIO","NO APLICA","NO APLICA","NO APLICA","ÓRGANOS DE ASESORAMIENTO","SOPORTE TECNOLÓGICO"]
[null,"ÁREA DE ENERGÍA Y MANTENIMIENTO","ÁREA DE CAPACITACIÓN","ÁREA DE REPRODUCCIÓN",null,"ÁREA DE CONSERVACIÓN","NO APLICA","NO APLICA","NO APLICA","ÓRGANOS DE APOYO","DESARROLLO TECNOLÓGICO"]
[null,"ÁREA ADMINISTRATIVA Y SERVICIOS COMPLEMENTARIOS","ÁREA DE ADMINISTRACIÓN","ÁREA DE ALEVINAJE",null,"ÁREA DE DESPACHO","NO APLICA","NO APLICA","NO APLICA","ÓRGANOS DE LÍNEA"]
[null,"ÁREA DE RESIDUOS SÓLIDOS",null,"ÁREA DE JUVENILES",null,"ÁREA DE COMERCIALIZACIÓN","NO APLICA","NO APLICA","NO APLICA","ATENCIÓN AL CIUDADANO"]
[null,"OTRAS ÁREAS",null,"ÁREA DE ENGORDE",null,"EDIFICACIONES EN TIERRA","NO APLICA","NO APLICA","NO APLICA","ÁREA ADMINISTRATIVA"]
[null,null,null,"LABORATORIO",null,"EDIFICACIONES EN MAR","NO APLICA","NO APLICA","NO APLICA"]
[null,null,null,"ÁREA DE ENSEÑANZA"]